bitfinex/quotes_ETHUSD_20251128
["timestamp","ask_amount","ask_price","bid_price","bid_amount"]
[1764336907528,0.4734,3047.2,3046.7,4.66981713]
[1764336907731,0.4734,3047.2,3046.7,0.209]
[1764336907942,0.4734,3047.2,3046.8,3.28213207]
[1764336908249,0.13440495,3047.4,3047.0,0.405504]
[1764336908396,0.13440495,3047.4,3047.3,4.66981713]
[1764336908735,0.60780495,3047.4,3047.1,0.209]
[1764336909518,0.13440495,3047.4,3047.2,4.6551175]
[1764336910253,0.13440495,3047.4,3047.0,4.6551175]
[1764336910558,0.62770495,3047.4,3046.8,0.209]
[1764336911054,0.4941,3047.3,3046.8,0.209]
[1764336911357,0.4941,3047.3,3046.6,6.56469506]
[1764336911358,0.6434,3046.9,3046.6,0.72559411]
[1764336911517,0.4587,3046.8,3046.6,0.72559411]
[1764336912151,0.9528,3046.7,3046.5,0.209]
[1764336912339,0.4587,3046.6,3046.5,0.209]
[1764336912523,0.4587,3046.6,3046.3,3.28266514]
[1764336912915,0.4587,3046.4,3046.2,0.209]
[1764336913158,0.4587,3046.3,3046.2,0.209]
[1764336913521,1.27230586,3046.3,3045.6,3.28342526]
[1764336913753,1.27230586,3046.3,3045.3,3.28366572]
[1764336913754,0.6434,3045.7,3045.3,3.28366572]
[1764336913925,1.1375,3045.7,3045.2,3.67603166]
[1764336914121,1.1375,3045.7,3045.3,0.72559411]
[1764336914122,0.4941,3045.6,3045.3,0.72559411]
[1764336914426,0.4941,3045.6,3045.2,3.49278366]
[1764336914625,0.1847,3045.7,3045.3,0.72559411]
[1764336914855,0.6788,3045.7,3045.3,0.72559411]
[1764336915644,0.4941,3045.6,3045.3,0.72559411]
[1764336916355,0.4941,3045.6,3045.3,3.28372556]
[1764336916733,0.1847,3045.7,3045.3,3.28372556]
[1764336917048,0.1847,3046.0,3045.4,0.0328364]
[1764336917641,0.4587,3045.5,3045.2,0.209]
[1764336917971,0.4587,3045.4,3045.2,4.21841255]
[1764336918171,0.4587,3045.3,3045.2,0.209]
[1764336918750,0.4587,3045.3,3045.2,0.93459411]
[1764336919472,0.4587,3045.3,3045.2,4.21845067]
[1764336919675,0.4587,3045.3,3045.2,0.72559411]
[1764336919859,0.9508,3045.3,3045.2,0.72559411]
[1764336921372,0.002,3046.0,3045.3,0.72559411]
[1764336921547,0.002,3046.0,3045.4,0.0328364]
[1764336922263,0.1837,3045.9,3045.5,0.72559411]
[1764336922465,0.1837,3045.9,3045.6,0.208]
[1764336922665,0.002,3046.0,3045.6,0.208]
[1764336922666,0.002,3046.0,3045.6,0.24083425]
[1764336924463,0.002,3046.0,3045.7,6.56663492]
[1764336924677,0.002,3046.0,3045.8,0.03283209]
[1764336926499,0.002,3046.0,3045.9,3.28310187]
[1764336927877,0.4599,3046.0,3045.9,3.28310187]
[1764336928078,0.002,3046.0,3045.9,3.28310187]
[1764336929395,0.002,3046.0,3045.9,3.98134678]
[1764336929785,0.002,3046.0,3045.9,3.28310187]
[1764336930281,0.4599,3046.0,3045.9,3.9814744]
[1764336930696,0.4599,3046.0,3045.9,3.28310187]
[1764336930897,0.002,3046.0,3045.9,3.28310187]
[1764336931097,0.952,3046.0,3045.9,3.31593288]
[1764336931389,0.952,3046.0,3045.9,3.98221846]
[1764336931893,0.952,3046.0,3045.9,0.69911659]
[1764336932224,0.0992,3045.8,3045.5,3.28352162]
[1764336932523,1.25674979,3046.0,3045.5,0.72559411]
[1764336932524,0.4579,3045.6,3045.5,0.72559411]
[1764336932699,0.76264979,3045.6,3045.5,1.42582893]
[1764336932886,1.25474979,3045.6,3045.5,1.42582893]
[1764336933088,1.25474979,3045.6,3045.5,0.70023482]
[1764336933312,0.0992,3045.5,3045.0,3.49203444]
[1764336933516,0.4579,3045.3,3045.1,1.45973154]
[1764336933718,0.30474979,3045.2,3045.1,0.03283964]
[1764336933891,0.30474979,3045.2,3044.5,1.16720861]
[1764336933892,1.35394979,3045.2,3044.8,3.28428251]
[1764336934086,1.35394979,3045.2,3044.9,1.42701759]
[1764336934087,0.30474979,3045.1,3044.9,1.42701759]
[1764336934282,0.30474979,3045.0,3044.9,0.75843591]
[1764336934487,0.30474979,3045.0,3044.9,1.46042674]
[1764336934787,0.76184979,3045.0,3044.9,4.04261601]
[1764336935518,0.76184979,3045.0,3044.9,5.62055948]
[1764336936030,0.30394979,3045.0,3044.9,5.62055948]
[1764336936188,0.30394979,3045.0,3044.9,5.75235808]
[1764336936393,0.30394979,3045.0,3044.9,6.91956669]
[1764336936588,0.30394979,3045.0,3044.9,6.88672489]
[1764336938221,0.30394979,3045.0,3044.9,7.29222889]
[1764336938421,0.4921,3045.7,3045.0,0.405504]
[1764336938717,0.4921,3045.7,3045.4,6.5672818]
[1764336938918,0.1837,3045.9,3045.5,0.91053701]
[1764336939221,0.6758,3045.9,3045.6,0.73537126]
[1764336939518,0.6758,3045.9,3045.7,0.70253701]
[1764336939739,0.6758,3045.9,3045.8,0.70253701]
[1764336940047,0.002,3046.0,3045.8,0.70253701]
[1764336940247,0.002,3046.0,3045.9,0.70253701]
[1764336940552,0.002,3046.0,3045.9,1.58146787]
[1764336940722,0.002,3046.0,3045.9,3.98563888]
[1764336941344,0.4822,3046.0,3045.9,5.1575467]
[1764336941547,0.002,3046.0,3045.9,5.1575467]
[1764336941755,0.4822,3046.0,3045.9,3.98563888]
[1764336942048,0.002,3046.0,3045.9,4.19363888]
[1764336942237,0.002,3046.0,3045.9,5.3655467]
[1764336942845,0.002,3046.0,3045.9,4.19363888]
[1764336943042,0.4822,3046.0,3045.9,0.70253701]
[1764336943232,0.9648,3046.0,3045.9,1.58292666]
[1764336943780,0.9648,3046.0,3045.9,3.98563888]
[1764336943781,0.002,3046.0,3045.9,3.98563888]
[1764336944141,0.4822,3046.0,3045.9,4.86602853]
[1764336944546,0.9648,3046.0,3045.9,4.86602853]
[1764336945828,0.002,3046.0,3045.9,4.86602853]
[1764336946427,0.4822,3046.0,3045.9,4.86602853]
[1764336946958,0.78921727,3046.0,3045.9,4.86602853]
[1764336947439,1.27181727,3046.0,3045.9,4.86602853]
[1764336948045,0.78921727,3046.0,3045.9,4.86602853]
[1764336948236,0.30901727,3046.0,3045.9,4.86602853]
[1764336949434,1.27181727,3046.0,3045.9,4.86602853]
[1764336949639,1.27181727,3046.0,3045.9,3.98563888]
[1764336951982,0.78921727,3046.0,3045.9,3.98563888]
[1764336952176,1.27181727,3046.0,3045.9,3.98563888]
[1764336952884,1.27181727,3046.0,3045.9,3.28310187]
[1764336957605,0.78921727,3046.0,3045.9,3.28310187]
[1764336958993,0.78841727,3046.0,3045.9,3.28310187]
[1764336959804,0.30821727,3046.0,3045.9,3.28310187]
[1764336960470,0.30821727,3046.0,3045.9,3.31593288]
[1764336960787,0.78841727,3046.0,3045.9,3.28310187]
[1764336960989,0.78841727,3046.0,3045.9,4.08143948]
[1764336960990,0.30821727,3046.0,3045.9,4.08143948]
[1764336961202,0.0012,3046.0,3045.9,12.43741421]
[1764336961371,0.0012,3046.0,3045.9,12.9834883]
[1764336961803,0.0012,3046.0,3045.9,11.23267538]
[1764336963192,0.0012,3046.0,3045.9,10.82717138]
[1764336963393,0.0012,3046.0,3045.9,12.7938436]
[1764336964115,0.0012,3046.0,3045.9,11.03517138]
[1764336964274,0.0012,3046.0,3045.9,12.7938436]
[1764336964479,0.0012,3046.0,3045.9,11.03517138]
[1764336965207,0.0012,3046.0,3045.9,11.44067538]
[1764336965412,0.0012,3046.0,3045.9,13.1993476]
[1764336965618,0.0012,3046.0,3045.9,11.44067538]
[1764336967311,0.0012,3046.0,3045.9,13.1993476]
[1764336967898,0.0012,3046.0,3045.9,11.44067538]
[1764336968280,0.30691423,3046.7,3046.0,1.13109811]
[1764336968483,0.13360495,3047.4,3046.6,1.60522856]
[1764336968484,0.4826,3047.2,3046.6,1.60522856]
[1764336968692,0.30693267,3047.1,3046.7,0.208]
[1764336968891,0.6633,3046.7,3046.5,0.87963445]
[1764336969111,0.4826,3047.2,3046.6,0.208]
[1764336969301,0.13360495,3047.4,3046.6,0.208]
[1764336969302,0.13360495,3047.4,3046.7,1.28513845]
[1764336969501,0.30685321,3047.3,3047.0,0.87963445]
[1764336969700,0.13360495,3047.4,3047.0,1.08763445]
[1764336970009,0.30684353,3047.3,3047.2,0.72559411]
[1764336970222,0.61620495,3047.4,3047.2,0.72559411]
[1764336970418,0.13360495,3047.4,3047.2,0.72559411]
[1764336971695,0.13360495,3047.4,3047.2,1.47531531]
[1764336971890,0.13360495,3047.4,3047.3,4.00718765]
[1764336974042,1.17914814,3050.1,3047.4,5.128598]
[1764336974200,0.1873,3050.9,3047.4,5.128598]
[1764336974201,0.49,3050.4,3049.4,0.405504]
[1764336974397,0.1873,3050.9,3049.4,0.405504]
[1764336974398,0.17129508,3050.6,3049.9,1.13109811]
[1764336974626,0.1873,3050.9,3050.1,0.405504]
[1764336975014,0.49,3051.1,3050.1,0.405504]
[1764336975215,0.1873,3052.0,3050.3,6.33292971]
[1764336975420,0.49,3051.5,3050.5,0.405504]
[1764336975596,0.1873,3052.0,3050.9,1.13109811]
[1764336975796,0.1873,3052.0,3051.1,6.55501294]
[1764336975998,0.49293676,3051.9,3051.2,0.93459411]
[1764336976197,0.00293676,3051.9,3051.4,0.72559411]
[1764336976430,0.00293676,3051.9,3051.6,0.405504]
[1764336976615,0.00293676,3051.9,3051.5,0.74640278]
[1764336976616,0.00293676,3051.9,3051.8,0.405504]
[1764336977212,0.00293676,3051.9,3051.7,0.209]
[1764336977213,0.00293676,3051.9,3051.3,0.405504]
[1764336977417,0.00293676,3051.9,3050.7,3.27792155]
[1764336977418,0.4823,3051.4,3050.7,3.27792155]
[1764336977742,0.49,3051.8,3050.7,3.27792155]
[1764336977743,0.4823,3051.3,3050.8,0.93459411]
[1764336978032,0.4823,3051.3,3051.0,0.72559411]
[1764336978201,0.49,3051.3,3051.0,0.72559411]
[1764336978630,0.49,3051.8,3051.0,0.72559411]
[1764336979002,0.49,3051.8,3051.1,0.405504]
[1764336979202,0.49,3051.8,3051.2,0.21]
[1764336980110,0.4766,3051.3,3051.2,0.21]
[1764336980312,0.4766,3051.3,3051.1,0.21]
[1764336980535,0.4781,3051.8,3051.1,0.21]
[1764336980724,0.4781,3051.8,3051.2,0.405504]
[1764336981623,0.00293676,3051.9,3051.2,6.73843371]
[1764336981804,0.00293676,3051.9,3051.4,0.405504]
[1764336982006,0.00293676,3051.9,3051.7,3.27686207]
[1764336982229,0.00293676,3051.9,3051.8,1.13109811]
[1764336983502,0.00213676,3051.9,3051.8,1.13109811]
[1764336983704,0.00213676,3051.9,3051.8,1.34109811]
[1764336984138,0.00213676,3051.9,3051.8,4.61785281]
[1764336984305,0.00213676,3051.9,3051.8,5.73502263]
[1764336984512,0.00213676,3051.9,3051.8,6.21312263]
[1764336984905,0.00213676,3051.9,3051.8,4.88595281]
[1764336985118,0.00213676,3051.9,3051.3,0.69484337]
[1764336985119,1.14543676,3051.9,3051.3,3.27719231]
[1764336985316,0.66733676,3051.9,3051.4,0.93559411]
[1764336985641,0.19073676,3051.9,3051.4,0.93559411]
[1764336986142,0.19073676,3051.9,3051.7,0.72559411]
[1764336986345,0.19073676,3051.9,3051.8,0.21]
[1764336986513,0.00213676,3051.9,3051.8,0.21]
[1764336986712,0.00213676,3051.9,3051.8,0.615504]
[1764336986913,0.00213676,3051.9,3051.8,1.4050077]
[1764336988241,0.00213676,3051.9,3051.8,5.40735651]
[1764336989412,0.1873,3054.1,3052.4,1.13109811]
[1764336989413,0.4781,3053.4,3052.4,1.13109811]
[1764336989614,0.4781,3053.4,3052.6,0.405504]
[1764336990152,0.1886,3053.5,3052.9,0.405504]
[1764336990371,0.1886,3055.7,3053.1,0.405504]
[1764336990650,0.1886,3056.3,3053.1,0.43109213]
[1764336990651,0.4781,3055.0,3053.1,0.43109213]
[1764336990811,0.4781,3055.0,3052.7,13.10315456]
[1764336990812,0.4781,3055.0,3053.9,0.72559411]
[1764336991147,0.1886,3055.9,3054.4,1.13109811]
[1764336991354,0.1886,3055.9,3054.3,6.33292971]
[1764336991355,0.1886,3055.8,3055.0,0.456204]
[1764336991711,0.1886,3056.3,3055.0,0.666204]
[1764336991712,0.1886,3055.7,3055.0,0.666204]
[1764336992116,3.27098457,3057.2,3055.0,4.71582053]
[1764336992344,0.4781,3055.6,3055.0,3.48332242]
[1764336992519,0.1886,3055.9,3055.2,0.72559411]
[1764336992741,0.4781,3056.1,3055.2,0.405504]
[1764336992932,0.4781,3056.1,3055.4,0.405504]
[1764336993135,0.4781,3056.1,3055.1,16.15257552]
[1764336993136,0.4781,3056.1,3055.1,6.54643054]
[1764336993331,0.4781,3056.1,3055.2,0.72559411]
[1764336993536,0.4781,3056.1,3055.3,0.211]
[1764336993758,0.4781,3056.1,3055.0,3.27329496]
[1764336993971,0.4781,3056.0,3055.1,0.211]
[1764336994159,0.4781,3056.0,3055.2,3.27310814]
[1764336994336,0.1886,3055.9,3055.2,3.27310814]
[1764336994763,0.6667,3055.9,3055.1,3.48415842]
[1764336995074,0.6667,3055.9,3055.1,6.75737369]
[1764336995369,0.4781,3055.8,3054.8,6.73843371]
[1764336995569,0.4781,3055.8,3054.9,0.211]
[1764336995756,0.4781,3055.8,3054.8,6.95255421]
[1764336995757,0.4781,3055.8,3055.0,0.211]
[1764336996163,0.4781,3055.8,3055.0,3.48431354]
[1764336996870,0.1886,3055.9,3055.0,6.75763596]
[1764336997042,0.4781,3055.8,3055.0,3.48431354]
[1764336997651,0.4781,3055.8,3055.0,0.211]
[1764336998170,0.4766,3055.1,3054.4,0.72559411]
[1764336998468,0.4766,3055.0,3054.5,0.211]
[1764336998674,0.1886,3054.6,3054.5,0.211]
[1764336998878,0.6667,3054.9,3054.5,0.211]
[1764336999176,0.6667,3054.9,3054.0,3.27439423]
[1764336999345,0.6667,3054.9,3054.1,0.211]
[1764336999346,0.4766,3054.5,3054.1,0.211]
[1764336999877,0.4766,3054.2,3052.4,0.0507]
[1764337000222,0.1886,3053.4,3052.6,9.82768785]
[1764337000422,0.4766,3054.1,3053.0,0.72559411]
[1764337000596,0.6667,3054.4,3053.3,0.0507]
[1764337000792,0.6667,3054.4,3053.4,0.03275037]
[1764337000987,3.2731235,3055.2,3054.3,0.0507]
[1764337001187,0.1886,3055.9,3054.6,0.6667]
[1764337001495,1.40035238,3055.8,3054.7,0.24373643]
[1764337001696,0.4835,3055.8,3054.7,0.24373643]
[1764337001998,0.4835,3055.8,3054.9,6.54685914]
[1764337002191,0.4835,3055.8,3055.0,0.03273322]
[1764337002611,0.1886,3055.9,3055.1,0.405504]
[1764337002924,0.1886,3055.9,3055.2,0.211]
[1764337003090,0.1886,3055.9,3055.2,0.24373108]
[1764337003491,0.1886,3055.9,3055.3,0.03273001]
[1764337003942,0.1886,3055.9,3055.2,0.211]
[1764337004152,0.1886,3055.9,3055.3,3.27300101]
[1764337004312,0.1963,3055.9,3055.3,6.54600202]
[1764337004741,0.1963,3055.9,3055.3,3.27300101]
[1764337004907,0.6798,3055.9,3055.3,3.27300101]
[1764337005112,0.6298,3055.9,3055.4,0.24372893]
[1764337005314,0.4835,3055.8,3055.4,0.211]
[1764337005531,0.4805,3055.5,3055.4,0.211]
[1764337005737,0.4805,3055.5,3055.2,3.27306482]
[1764337005940,0.4805,3055.4,3055.3,0.211]
[1764337006314,0.964,3055.4,3055.3,0.211]
[1764337006812,0.964,3055.4,3055.0,3.27331261]
[1764337007013,0.4805,3055.3,3055.1,0.211]
[1764337007218,0.4835,3055.8,3055.1,0.24373215]
[1764337007426,0.30119202,3055.7,3055.1,0.211]
[1764337007658,0.1463,3055.9,3055.1,0.211]
[1764337007659,0.1463,3055.9,3055.3,0.405504]
[1764337007847,0.6798,3056.1,3055.1,1.61235615]
[1764337008152,0.6798,3056.1,3055.4,0.405504]
[1764337008455,0.6798,3056.1,3055.5,0.211]
[1764337008635,0.1963,3056.1,3055.5,0.211]
[1764337009146,0.1963,3056.4,3055.6,0.64923079]
[1764337009956,0.1963,3056.7,3055.6,0.64923079]
[1764337010123,0.1963,3056.7,3055.7,9.81771768]
[1764337010442,3.2704619,3057.7,3055.7,9.81771768]
[1764337010443,0.6798,3057.3,3056.0,1.13109811]
[1764337010648,0.6798,3057.3,3056.1,0.95740278]
[1764337010818,0.6798,3057.3,3056.1,1.00810278]
[1764337011242,3.46622894,3058.2,3056.1,1.00810278]
[1764337011243,3.4662384,3058.2,3056.1,1.00810278]
[1764337011414,0.4835,3058.1,3056.5,1.13109811]
[1764337011611,0.4835,3058.1,3056.7,0.405504]
[1764337011815,0.4835,3058.1,3056.8,0.211]
[1764337012016,0.4835,3058.1,3056.8,0.3117]
[1764337012213,0.4835,3058.1,3056.9,6.7535758]
[1764337012748,7.02354332,3058.1,3056.8,0.72559411]
[1764337012949,3.75360292,3058.1,3056.9,0.211]
[1764337013245,0.4835,3058.0,3056.9,0.211]
[1764337013436,0.4835,3058.0,3056.8,0.72559411]
[1764337013618,0.4835,3058.0,3056.9,0.211]
[1764337014346,0.1963,3058.2,3057.2,0.405504]
[1764337014536,0.1963,3058.3,3057.2,0.405504]
[1764337014738,0.4835,3058.7,3057.4,1.13109811]
[1764337015061,0.1963,3060.3,3057.4,1.13109811]
[1764337015062,0.6798,3059.1,3057.6,0.405504]
[1764337015218,0.6798,3059.1,3057.5,0.3117]
[1764337015219,0.17082343,3059.7,3059.0,0.1507]
[1764337015422,0.17082343,3059.7,3058.4,0.72559411]
[1764337015423,0.4835,3059.7,3059.1,0.212]
[1764337015652,0.4835,3059.7,3059.2,0.212]
[1764337016054,0.1963,3060.3,3059.2,0.212]
[1764337016321,0.1963,3060.3,3058.5,0.1007]
[1764337016322,0.4835,3059.9,3059.3,0.212]
[1764337016549,0.4835,3059.9,3058.8,0.72559411]
[1764337016847,0.6798,3060.3,3058.9,0.617504]
[1764337017150,0.1963,3060.3,3058.9,0.617504]
[1764337017348,0.1963,3060.3,3058.8,7.05852382]
[1764337017349,0.1963,3059.9,3059.0,0.212]
[1764337017551,0.1963,3059.9,3058.0,6.54022236]
[1764337017552,0.6768,3058.9,3058.0,6.54022236]
[1764337017753,0.1963,3059.9,3058.1,8.35590903]
[1764337017955,0.6798,3059.9,3058.8,0.1007]
[1764337018250,0.1963,3060.5,3059.2,0.405504]
[1764337018436,0.1963,3060.5,3059.1,7.05852382]
[1764337018437,0.4835,3060.4,3059.4,0.405504]
[1764337018838,0.4835,3060.4,3059.1,0.72559411]
[1764337019348,0.4835,3060.4,3059.3,0.405504]
[1764337019717,0.4835,3060.4,3059.1,7.05852382]
[1764337019918,0.4835,3060.4,3059.2,0.617504]
[1764337020122,0.4835,3060.4,3059.4,6.53722952]
[1764337020351,0.30171201,3060.3,3059.4,6.53722952]
[1764337020521,0.30171201,3060.3,3059.5,0.212]
[1764337020722,0.30171201,3060.3,3059.5,0.93759411]
[1764337020938,0.1963,3060.5,3059.6,0.405504]
[1764337021141,0.6798,3060.5,3059.6,1.45182572]
[1764337021342,0.1963,3059.7,3059.5,0.4835]
[1764337021539,0.964,3059.6,3058.2,3.26989732]
[1764337021755,0.0992,3059.5,3058.4,0.6798]
[1764337021958,0.0992,3059.2,3058.5,0.24469576]
[1764337022269,3.36804363,3059.2,3057.8,0.72559411]
[1764337022564,0.0992,3059.0,3057.7,3.27043202]
[1764337022779,0.0992,3058.9,3057.7,0.65909418]
[1764337022976,0.4835,3059.1,3057.0,3.2711793]
[1764337022977,0.1963,3057.8,3057.0,3.2711793]
[1764337023128,0.1963,3057.8,3057.1,0.03271073]
[1764337023327,0.4835,3057.7,3056.3,0.98250647]
[1764337023535,0.0992,3057.6,3056.4,0.75265114]
[1764337023734,0.4835,3057.7,3056.5,0.03271716]
[1764337023935,0.4835,3057.6,3056.5,0.03271716]
[1764337024137,0.4835,3057.6,3056.4,0.75265114]
[1764337024138,0.1963,3056.6,3056.4,0.75265114]
[1764337024348,0.4835,3056.5,3055.3,0.72559411]
[1764337024561,0.4835,3056.5,3055.4,0.03272893]
[1764337024827,0.4835,3056.5,3055.3,0.72559411]
[1764337025058,0.4835,3056.5,3055.7,0.212]
[1764337025263,0.4835,3056.5,3055.8,0.03272465]
[1764337025560,0.4835,3056.5,3055.9,0.212]
[1764337025762,0.1963,3056.6,3056.0,0.03272251]
[1764337026180,0.1963,3056.6,3055.6,0.406504]
[1764337026181,0.4835,3056.5,3055.6,0.001]
[1764337026326,0.4835,3056.5,3055.7,0.212]
[1764337026728,0.4835,3056.5,3055.8,0.212]
[1764337026929,0.4835,3056.5,3055.9,0.212]
[1764337027360,0.4835,3056.5,3056.0,0.03272251]
[1764337027524,0.4835,3056.5,3055.7,0.212]
[1764337027960,0.1963,3055.8,3055.7,0.212]
[1764337028426,0.1963,3055.8,3055.6,3.27362962]
[1764337028427,0.6798,3055.8,3055.6,0.001]
[1764337028762,0.6798,3055.8,3055.6,3.4856461]
[1764337029134,0.6798,3055.8,3055.7,0.03272572]
[1764337029433,0.1963,3055.9,3055.6,3.4856461]
[1764337029634,0.1963,3055.9,3055.7,0.03272572]
[1764337029834,0.6798,3055.9,3055.7,0.03272572]
[1764337030047,0.6798,3055.9,3055.7,0.212]
[1764337030249,0.4835,3055.8,3055.6,0.001]
[1764337031551,0.4835,3055.8,3055.6,0.213]
[1764337031765,0.4827,3055.8,3055.6,0.213]
[1764337032077,0.4827,3055.8,3055.6,0.001]
[1764337032240,0.5819,3055.8,3055.6,0.001]
[1764337032431,0.4503,3055.7,3055.6,0.001]
[1764337032851,0.0992,3055.5,3054.8,0.212]
[1764337033033,0.4503,3054.8,3054.6,3.27370963]
[1764337033246,0.4503,3054.7,3054.6,3.48570963]
[1764337033471,0.4503,3054.7,3053.6,3.27482315]
[1764337033762,0.4503,3054.5,3053.7,0.24474715]
[1764337033930,0.4503,3054.5,3053.6,6.5496463]
[1764337034134,0.1838,3053.7,3053.0,0.0507]
[1764337034442,0.1838,3053.7,3053.1,0.24475359]
[1764337034662,0.1838,3053.7,3053.1,0.212]
[1764337034964,0.1838,3053.7,3052.8,9.82704402]
[1764337034965,0.679,3053.7,3053.2,0.24475252]
[1764337035178,0.679,3053.7,3053.5,0.001]
[1764337035459,0.4952,3053.6,3053.5,0.001]
[1764337036537,0.1838,3053.7,3053.5,0.0337493]
[1764337036775,0.679,3053.7,3053.5,0.0337493]
[1764337037146,0.1838,3053.7,3053.5,0.0337493]
[1764337037459,0.4503,3053.6,3053.5,0.0337493]
[1764337037668,0.9455,3053.6,3053.5,0.0337493]
[1764337037834,0.1838,3053.7,3053.5,1.01963605]
[1764337038536,0.1838,3053.7,3053.6,3.27482315]
[1764337038731,0.4952,3054.0,3053.6,6.5496463]
[1764337038937,0.1838,3054.0,3053.7,0.24474715]
[1764337039448,0.1838,3054.0,3053.5,3.27589701]
[1764337039449,0.4503,3053.8,3053.5,3.27589701]
[1764337039639,0.4503,3053.6,3053.5,3.27588297]
[1764337039971,0.4952,3053.9,3053.5,6.76281337]
[1764337040536,0.4528,3053.6,3053.5,3.27588297]
[1764337040733,0.4528,3053.6,3053.5,3.48788297]
[1764337040963,0.9326,3053.6,3053.5,3.48788297]
[1764337041263,0.1838,3054.0,3053.5,6.76281337]
[1764337041477,0.4798,3053.9,3053.6,0.212]
[1764337041675,0.4798,3053.9,3053.6,0.24474823]
[1764337042265,0.4528,3053.7,3053.6,0.24474823]
[1764337042473,0.4528,3053.7,3053.6,3.48682315]
[1764337042775,0.4798,3054.8,3053.6,17.28813459]
[1764337043089,0.4798,3054.8,3053.7,0.72559411]
[1764337043245,0.579,3054.8,3053.8,0.24474608]
[1764337043442,0.579,3054.8,3053.8,0.212]
[1764337043846,0.579,3054.8,3053.8,1.47131573]
[1764337044072,0.0992,3054.5,3053.9,0.212]
[1764337044290,0.0992,3054.5,3053.9,0.24474501]
[1764337044457,0.6474,3054.0,3053.9,3.48650145]
[1764337044846,1.1272,3054.0,3053.9,3.27450145]
[1764337045676,1.1272,3054.0,3053.5,4.00148894]
[1764337045677,1.1272,3054.0,3053.5,6.55077838]
[1764337045847,0.9326,3053.9,3053.5,6.55077838]
[1764337046046,0.9326,3053.9,3053.6,0.212]
[1764337046250,0.1946,3054.0,3053.6,0.212]
[1764337046251,0.1946,3054.3,3053.7,0.03274715]
[1764337046452,0.1946,3054.5,3053.8,9.82382604]
[1764337046675,0.6744,3054.5,3053.8,6.54921736]
[1764337046885,0.7736,3054.5,3053.9,0.03274501]
[1764337047090,0.4798,3054.4,3054.0,0.212]
[1764337047893,0.1946,3054.5,3054.0,0.212]
[1764337048183,0.6744,3054.5,3054.0,0.212]
[1764337048352,0.6744,3054.5,3054.1,6.54857404]
[1764337048554,0.4798,3054.4,3054.2,0.212]
[1764337048852,0.4528,3054.2,3054.1,3.93241882]
[1764337049077,0.4528,3054.2,3054.1,3.27428702]
[1764337049278,0.9326,3054.2,3054.0,3.27435615]
[1764337049581,0.1946,3054.5,3053.8,3.27457966]
[1764337049582,0.4528,3054.0,3053.9,3.2744523]
[1764337049783,0.0992,3054.0,3053.9,3.2744523]
[1764337049955,1.0318,3054.0,3053.9,3.2744523]
[1764337050154,0.9326,3054.0,3053.9,3.2744523]
[1764337050553,0.4798,3054.4,3053.9,7.22505937]
[1764337050761,0.4528,3054.0,3053.9,3.2744523]
[1764337050975,0.4528,3054.0,3053.9,3.4864523]
[1764337051170,0.7576459,3054.0,3053.9,3.4864523]
[1764337051370,0.3048459,3054.0,3053.9,3.51919731]
[1764337051576,0.4798,3054.4,3053.9,7.47307887]
[1764337051896,0.304878,3054.3,3053.9,10.71483531]
[1764337052063,0.304878,3054.2,3053.9,10.71483531]
[1764337052262,0.4798,3054.4,3053.9,6.76095375]
[1764337052465,0.4528,3054.0,3053.9,0.212]
[1764337052698,0.4528,3054.0,3053.5,0.001]
[1764337052699,0.75773568,3054.0,3053.5,0.001]
[1764337052868,0.4528,3053.6,3053.5,0.001]
[1764337053056,0.4798,3053.9,3053.5,0.213]
[1764337053261,0.1946,3054.5,3053.6,0.03274823]
[1764337053475,0.78477318,3054.4,3053.6,0.03274823]
[1764337053677,0.30497318,3054.3,3053.6,0.03274823]
[1764337053888,0.30497318,3054.2,3053.6,0.03274823]
[1764337054091,0.30497318,3054.1,3053.6,0.03274823]
[1764337054265,0.4798,3054.4,3053.6,0.03274823]
[1764337054457,0.30500469,3054.3,3053.7,9.82414773]
[1764337054662,0.30500469,3054.2,3053.8,0.03274608]
[1764337054862,0.30500469,3054.1,3053.9,0.212]
[1764337055063,0.4798,3054.4,3054.0,0.03274394]
[1764337055279,0.30500742,3054.3,3054.0,0.03274394]
[1764337055481,0.30500742,3054.2,3054.0,0.03274394]
[1764337055686,0.75780742,3054.1,3054.0,0.212]
[1764337055888,0.75700742,3054.1,3054.0,0.212]
[1764337056090,1.23680742,3054.1,3053.7,6.54943182]
[1764337056293,0.1946,3054.5,3053.7,3.27471591]
[1764337056294,0.4528,3053.8,3053.7,3.27471591]
[1764337056498,0.4528,3053.8,3053.7,3.48671591]
[1764337056658,0.9326,3053.8,3053.7,3.48671591]
[1764337057057,1.23768839,3053.8,3053.7,3.51946306]
[1764337057262,0.4798,3054.4,3053.7,10.74842291]
[1764337057491,0.30512123,3054.3,3053.7,10.71567576]
[1764337057691,0.1946,3054.5,3053.7,10.71567576]
[1764337057692,0.30512123,3054.2,3053.8,0.75834019]
[1764337057893,0.1946,3054.5,3053.8,0.72559411]
[1764337057894,0.7736,3054.5,3053.8,0.72559411]
[1764337058195,0.78489403,3054.4,3053.9,0.03274501]
[1764337058379,0.30509403,3054.3,3054.0,0.212]
[1764337058690,0.1946,3054.5,3054.0,0.212]
[1764337058691,0.4528,3054.1,3054.0,3.48639423]
[1764337058886,0.75789403,3054.1,3053.6,3.27482315]
[1764337059090,0.0992,3053.9,3053.7,0.212]
[1764337059279,0.4528,3053.7,3053.5,0.001]
[1764337059484,0.30509403,3053.8,3053.5,3.48788216]
[1764337059485,0.75789403,3053.6,3053.5,3.48788216]
[1764337059658,0.75789403,3053.6,3053.5,3.27588216]
[1764337059866,1.23769403,3053.6,3053.5,3.27588216]
[1764337061083,0.30509403,3053.6,3053.5,3.27588216]
[1764337061296,0.30509403,3053.6,3053.5,3.30863146]
[1764337061492,1.24979403,3053.6,3053.5,3.48788216]
[1764337061866,1.24979403,3053.6,3053.5,3.48688216]
[1764337062394,1.24979403,3053.6,3053.5,3.27588216]
[1764337062577,1.24979403,3053.6,3053.5,3.48688216]
[1764337062775,1.24979403,3053.6,3053.5,0.001]